fUST/lending_fUST_20260322
["ID","MTS","AMOUNT","RATE_DAILY","PERIOD"]
[408698688,1774140644127,-2888.27003825,0.0002251,30]
[408698689,1774140644138,-3500.0,0.0002251,30]
[408698690,1774140644150,-8619.96124608,0.0002251,30]
[408698691,1774140644159,-3847.9395952,0.00022725,2]
[408698697,1774140646670,-11400.91257509,0.00022725,2]
[408698698,1774140646682,-253.7425319,0.00022725,2]
[408698699,1774140646694,-14735.0,0.00022725,2]
[408698700,1774140646884,-8527.55368979,0.00022725,2]
[408698701,1774140646896,-2088.0,0.00022725,2]
[408698716,1774141261901,-167.63743,5.851e-05,10]
[408698719,1774141458179,-300.0,5.85e-05,2]
[408698720,1774141459914,-300.0,5.85e-05,2]
[408698721,1774141484521,-300.0,5.85e-05,2]
[408698768,1774141831695,-368.68924871,5.619e-05,2]
[408698770,1774141831708,-455.59736828,5.619e-05,2]
[408698789,1774141837746,-2189.01973514,5.619e-05,2]
[408698790,1774141837759,-919.05621787,5.619e-05,2]
[408698791,1774141837769,-1200.0,5.675e-05,2]
[408698792,1774141837779,-5000.0,5.676e-05,2]
[408698793,1774141837788,-502.0,5.676e-05,2]
[408698794,1774141837798,-300.0,5.907e-05,2]
[408698795,1774141837808,-1000.0,0.00013699,2]
[408698796,1774141837818,-3805.0,0.00015339,2]
[408698797,1774141837828,-505.0,0.00015339,2]
[408698798,1774141837838,-1000.0,0.00017845,2]
[408698799,1774141837847,-179.328,0.00021951,2]
[408698800,1774141837857,-186.672,0.00021951,2]
[408698801,1774141837867,-438.0,0.00021951,2]
[408698802,1774141837876,-324.7325339,0.0002229,2]
[408698803,1774141837886,-230.53708017,0.00022337,2]
[408698806,1774141837895,-2150.738,0.00022651,2]
[408698809,1774141837905,-162.380719,0.00022876,2]
[408698811,1774141837915,-151.0,0.00022876,2]
[408698813,1774141837924,-583.99668615,0.00022876,2]
[408698815,1774141837934,-537.6845,0.00022876,2]
[408698816,1774141837946,-15.5661208,0.00022876,2]
[408698854,1774141842608,-302.82453496,0.00022876,10]
[408698925,1774141843228,-359.66901507,0.00020505,2]
[408698928,1774141843239,-2069.36148718,0.00020505,2]
[408698930,1774141843251,-1915.05712745,0.00020505,2]
[408698932,1774141843262,-114.15075112,0.00022647,10]
[408699226,1774141846167,-4885.84924888,0.00022647,10]
[408699228,1774141846176,-3488.0,0.00022876,10]
[408699230,1774141846186,-452.0,0.00022876,10]
[408699232,1774141846195,-146.8145982,0.00022876,2]
[408699234,1774141846204,-23638.06311408,0.0002289,2]
[408699237,1774141846221,-6361.93688592,0.0002289,2]
[408699239,1774141846231,-348.87795675,0.00022893,60]
[408699241,1774141846240,-160.0,0.0002294,5]
[408699243,1774141846250,-270.83333333,0.00023,2]
[408699245,1774141846259,-969.2969685,0.00023108,2]
[408699247,1774141846268,-180.135105,0.00023241,2]
[408699248,1774141846278,-1619.55456067,0.0002328,2]
[408699493,1774143031888,-3446.76645159,9.899e-05,10]
[408699495,1774143031899,-367.56891035,9.899e-05,10]
[408699944,1774143043605,-1185.66463806,9.899e-05,10]
[408699945,1774143043615,-300.0,9.999e-05,2]
[408699946,1774143043625,-310.36316785,0.0001,2]
[408699947,1774143043635,-1180.77223351,0.0001,2]
[408699948,1774143043644,-560.0,0.0001,2]
[408699949,1774143043654,-1180.77223351,0.00010465,2]
[408699950,1774143043664,-946.30277583,0.0001093,2]
[408699951,1774143043677,-234.46945768,0.0001093,2]
[408699952,1774143043687,-572.52181786,0.00011394,7]
[408699957,1774143046282,-608.25041565,0.00011394,7]
[408699958,1774143046293,-1180.77223351,0.00011859,7]
[408699959,1774143046306,-1180.77223351,0.00012324,7]
[408699960,1774143046315,-1180.77223351,0.00012789,7]
[408699961,1774143046324,-1000.0,0.00013699,2]
[408699962,1774143046334,-472.91820537,0.00015,2]
[408699963,1774143046345,-3507.0,0.00016005,2]
[408699964,1774143046356,-235.0,0.00016005,2]
[408699965,1774143046366,-452.0,0.00016005,2]
[408699966,1774143046378,-506.04688649,0.00020225,60]
[408699967,1774143046388,-552.63294754,0.00020445,2]
[408700024,1774144232069,-5000.0,0.00013159,2]
[408700026,1774144232079,-609.0,0.00013292,2]
[408700028,1774144232089,-156.0,0.00013699,2]
[408700030,1774144232098,-1000.0,0.00013699,2]
[408700032,1774144232108,-154.0,0.00016891,30]
[408700033,1774144232117,-154.0,0.00017891,30]
[408700035,1774144232127,-154.0,0.00018891,30]
[408700036,1774144232136,-161.67104768,0.00019393,2]
[408700037,1774144232146,-243.0801895,0.00019731,2]
[408700038,1774144232156,-385.5885873,0.00019731,2]
[408700040,1774144232167,-535.76008688,0.00019731,2]
[408700107,1774144240615,-333.3333375,0.00019731,2]
[408700296,1774144243549,-222.87049772,0.00019731,2]
[408700297,1774144243560,-336.33341679,0.00019731,5]
[408700298,1774144243572,-97.66658321,0.00019731,5]
[408700299,1774144243581,-3361.0,0.00019731,5]
[408700300,1774144243591,-154.0,0.00019891,30]
[408700301,1774144243601,-394.47084474,0.00020615,120]
[408700303,1774144243618,-510.78786762,0.00020615,120]
[408700304,1774144243629,-289.21213238,0.0002069,60]
[408700305,1774144243641,-216.83475411,0.0002069,60]
[408700306,1774144243653,-154.0,0.00020891,30]
[408700307,1774144243663,-125.54021686,0.00021008,120]
[408700314,1774144246228,-794.0,0.00021008,10]
[408700315,1774144246238,-3081.0,0.00021008,10]
[408700316,1774144246249,-779.7184955,0.00021008,120]
[408700317,1774144246261,-506.04688649,0.00021155,60]
[408700318,1774144246271,-905.25871236,0.00021401,120]
[408700319,1774144246280,-506.04688649,0.0002162,60]
[408700320,1774144246290,-154.7224054,0.00021891,30]
[408700321,1774144246299,-506.04688649,0.00022085,60]
[408700322,1774144246309,-184.07,0.00022121,2]
[408700323,1774144246319,-55651.47009054,0.00022222,10]
[408700324,1774144246328,-1477.5525094,0.00022365,2]
[408700325,1774144246339,-6848.38083725,0.000224,10]
[408700644,1774145438554,-5000.0,0.00013027,10]
[408700646,1774145438564,-615.0,0.00013698,2]
[408700649,1774145438574,-1200.0,0.00013698,2]
[408700651,1774145438585,-1000.0,0.00013699,2]
[408700653,1774145438595,-154.0,0.00016905,30]
[408700655,1774145438604,-154.0,0.00017905,30]
[408700657,1774145438614,-154.0,0.00018905,30]
[408700659,1774145438624,-300.0,0.00019998,2]
[408700661,1774145438634,-950.75,0.0002,2]
[408700663,1774145438643,-835.1734015,0.00020213,2]
[408700664,1774145438653,-243.0801895,0.00020213,2]
[408700665,1774145438663,-1000.0,0.00021537,2]
[408700666,1774145438672,-829.65058005,0.000222,2]
[408700667,1774145438681,-835.1734015,0.00022256,2]
[408700668,1774145438690,-598.44,0.000223,2]
[408700670,1774145438700,-598.44,0.000223,2]
[408700671,1774145438710,-598.44,0.000223,2]
[408700672,1774145438719,-598.44,0.000223,2]
[408700673,1774145438729,-598.44,0.000223,2]
[408700674,1774145438739,-598.44,0.000223,2]
[408700675,1774145438749,-598.44,0.000223,2]
[408700676,1774145438758,-598.44,0.000223,2]
[408700677,1774145438768,-598.44,0.000223,2]
[408700678,1774145438778,-831.08,0.000223,2]
[408700679,1774145438787,-151.0,0.000224,2]
[408700680,1774145438796,-3093.0,0.000224,10]
[408700681,1774145438805,-764.0,0.000224,10]
[408700682,1774145438815,-151.0,0.000224,2]
[408700683,1774145438825,-506.04688649,0.00022549,120]
[408700684,1774145438835,-151.00685184,0.00023,2]
[408700685,1774145438844,-270.83333333,0.00023,2]
[408700686,1774145438853,-52199.54983572,0.00023,10]
[408700687,1774145438863,-152.592335,0.00023,2]
[408700688,1774145438872,-506.04688649,0.00023014,120]
[408700689,1774145438882,-180.135105,0.0002313,2]
[408700690,1774145438891,-151.0,0.00023194,2]
[408700691,1774145438900,-151.0,0.00023194,2]
[408700692,1774145438909,-1636.18652578,0.0002328,2]
[408700693,1774145438921,-2507.84039351,0.0002328,2]
[408700694,1774145438933,-6295.55015632,0.0002328,2]
[408700695,1774145438947,-151.0,0.0002328,2]
[408700696,1774145438956,-503.16973894,0.00023353,60]
[408700697,1774145438967,-389.07376946,0.00023353,30]
[408700698,1774145438976,-209.543,0.00023386,2]
[408700699,1774145438987,-1406.006,0.00023386,2]
[408700700,1774145438996,-641.0,0.00023386,2]
[408700701,1774145439006,-186.672,0.00023386,2]
[408700702,1774145439016,-444.058,0.00023386,2]
[408700703,1774145439025,-348.87795675,0.00023479,60]
[408700704,1774145439036,-506.04688649,0.00023479,120]
[408700705,1774145439046,-663.6950387,0.00023699,2]
[408700706,1774145439055,-600.0,0.00023882,10]
[408700707,1774145439065,-1491.67627607,0.00024,2]
[408700708,1774145439075,-720.99,0.00024,2]
[408700709,1774145439085,-327.39769095,0.00024,5]
[408700710,1774145439096,-348.87795675,0.00024065,60]
[408700711,1774145439106,-1335.58701673,0.00024073,7]
[408700712,1774145439117,-782.24271055,0.00024073,7]
[408700713,1774145439128,-2892.57182368,0.00024073,7]
[408700769,1774145440812,-3093.0,0.000223,10]
[408700771,1774145440822,-764.0,0.000223,10]
[408700773,1774145440832,-229.32759718,0.00024073,7]
[408700778,1774145440865,-1175.66510949,0.00024073,7]
[408700800,1774145443546,-4897.67823632,0.00024073,7]
[408700801,1774145443556,-270.83333333,0.00024073,7]
[408700802,1774145443566,-573.0,0.00024073,10]
[408700803,1774145443575,-2706.0,0.00024073,10]
[408700804,1774145443584,-2448.81774422,0.00024083,2]
[408700805,1774145443594,-570.27537027,0.00024173,2]
[408700806,1774145443603,-500.0,0.00024173,2]
[408700807,1774145443613,-500.0,0.00024173,2]
[408700808,1774145443622,-500.0,0.00024173,2]
[408700809,1774145443631,-500.0,0.00024173,2]
[408700810,1774145443640,-500.0,0.00024173,2]
[408700811,1774145443650,-164.725896,0.00024173,2]
[408700812,1774145443660,-8710.82563344,0.00024182,2]
[408700813,1774145443672,-1504.3502,0.00024182,2]
[408700814,1774145443683,-433.51392322,0.00024182,2]
[408700815,1774145443700,-869.68423991,0.00024182,2]
[408700816,1774145443711,-11630.40653604,0.00024182,2]
[408700817,1774145443724,-1012.15324198,0.00024182,2]
[408700818,1774145443736,-6560.50386647,0.00024182,2]
[408700827,1774145446751,-51283.19460094,0.00024182,2]
[408700828,1774145446760,-542.0,0.00024182,10]
[408700829,1774145446769,-2609.0,0.00024182,10]
[408700830,1774145446779,-30128.99476562,0.00024183,2]
[408700884,1774146632906,-5000.0,0.00012798,10]
[408700885,1774146632916,-3506.51072655,0.00012927,2]
[408700886,1774146632925,-1200.0,0.00013026,2]
[408700887,1774146632934,-300.0,0.00013698,2]
[408700888,1774146632943,-468.48927345,0.00013699,2]
[408700889,1774146632954,-531.51072655,0.00013699,2]
[408700890,1774146632963,-372.19726721,0.00021765,6]
[408700911,1774146638637,-23.23675278,0.00021765,6]
[408700913,1774146638646,-594.0,0.00021765,10]
[408700915,1774146638657,-582.76324722,0.00021765,10]
[408700990,1774146641102,-2195.23675278,0.00021765,10]
[408700992,1774146641112,-495.0,0.00021765,10]
[408700994,1774146641122,-161.81755201,0.0002261,5]
[408700996,1774146641132,-270.83333333,0.00023,2]
[408700998,1774146641141,-455.0497023,0.00023274,2]
[408701000,1774146641151,-2191.0,0.00023386,2]
[408701002,1774146641160,-641.0,0.00023386,2]
[408701004,1774146641170,-438.0,0.00023386,2]
[408701006,1774146641179,-183.0,0.00023386,2]
[408701008,1774146641189,-160.37017963,0.00023768,5]
[408701010,1774146641198,-2000.0,0.00024,2]
[408701012,1774146641208,-1670.3468033,0.00024035,2]
[408701014,1774146641217,-2203.93596978,0.00024083,2]
[408701016,1774146641226,-91574.85556523,0.00024083,2]
[408701018,1774146641238,-452.28667416,0.00024083,2]
[408701119,1774146643731,-396.54944253,0.00024083,10]
[408701126,1774146646853,-2279.45055747,0.00024083,10]
[408701127,1774146646863,-503.0,0.00024083,10]
[408701128,1774146646873,-2490.72331943,0.00024083,2]
[408701129,1774146646886,-5639.53415044,0.00024083,2]
[408701136,1774147625346,300.0,2.004e-05,2]
[408701137,1774147625372,136.555,2.004e-05,2]
[408701159,1774147831595,-770.00854438,0.0001193,2]
[408701200,1774147837710,-698.70279256,0.0001193,2]
[408701202,1774147837720,-5000.0,0.0001205,2]
[408701204,1774147837729,-1200.0,0.00012171,2]
[408701206,1774147837739,-5000.0,0.00012172,2]
[408701208,1774147837748,-300.0,0.00013191,2]
[408701209,1774147837757,-300.0,0.00013191,2]
[408701211,1774147837767,-3506.51072655,0.00013192,2]
[408701213,1774147837776,-1680.0,0.00013388,2]
[408701215,1774147837786,-1000.0,0.00013699,2]
[408701217,1774147837795,-420.0,0.00014463,2]
[408701218,1774147837804,-2071.0,0.00014727,2]
[408701219,1774147837814,-1000.0,0.00015791,2]
[408701220,1774147837824,-587.0,0.00015858,2]
[408701221,1774147837833,-461.0,0.00016632,2]
[408701222,1774147837842,-2565.0,0.00016632,2]
[408701223,1774147837851,-300.0,0.00017388,2]
[408701224,1774147837861,-161.96979513,0.00022611,5]
[408701225,1774147837871,-641.0,0.00023376,2]
[408701226,1774147837880,-2191.0,0.00023376,2]
[408701227,1774147837890,-12462.3358517,0.00023592,2]
[408701228,1774147837901,-338.5790537,0.00023592,2]
[408701229,1774147837910,-27291.52352725,0.00023883,2]
[408701230,1774147837922,-809.1031,0.00023883,2]
[408701231,1774147837933,-54492.37436928,0.00023883,2]
[408701245,1774147840124,-270.83333333,0.00023147,2]
[408701246,1774147840133,-1421.86666667,0.00023883,10]
[408701247,1774147840143,-841.52588397,0.00023883,10]
[408701433,1774147842871,-87.60744936,0.00023883,10]
[408701434,1774147842880,-422.0,0.00023883,10]
[408701435,1774147842890,-6121.05200124,0.00023883,2]
[408701436,1774147842901,-302.62139999,0.00023883,2]
[408701437,1774147842912,-2218.61898699,0.00023883,2]
[408701438,1774147842923,-2459.88076605,0.00023883,2]
[408701439,1774147842933,-398.48786404,0.00023883,2]
[408701440,1774147842944,-1732.755,0.00023883,2]
[408701441,1774147842955,-4587.0657763,0.00023883,2]
[408701454,1774147845965,-983.43426962,0.00023883,10]
[408701455,1774147845977,-1278.56573038,0.00023883,10]
[408701456,1774147845986,-1055.0,0.00023883,10]
[408701457,1774147845995,-107307.46643491,0.00023883,2]
[408701458,1774147846007,-17358.80346027,0.00023883,2]
[408701459,1774147846018,-3425.62528833,0.00023883,2]
[408701494,1774149031772,-438.23496928,0.00012265,10]
[408701501,1774149031828,-676.05499393,0.00012265,10]
[408701503,1774149031838,-5000.0,0.00012389,10]
[408701505,1774149031847,-1200.0,0.00013697,2]
[408701507,1774149031856,-300.0,0.00013698,2]
[408701509,1774149031866,-300.0,0.00013698,2]
[408701511,1774149031875,-258.0,0.00013698,2]
[408701513,1774149031885,-615.0,0.00013698,2]
[408701514,1774149031894,-1000.0,0.00013699,2]
[408701516,1774149031905,-218.97805,0.00020819,2]
[408701518,1774149031918,-500.43546855,0.00022434,5]
[408701520,1774149031927,-3239.8819379,0.00023186,2]
[408701522,1774149031937,-270.83333333,0.00023229,2]
[408701524,1774149031947,-455.2869438,0.00023274,2]
[408701526,1774149031959,-150.0,0.00023376,2]
[408701529,1774149031968,-151.474,0.00023376,2]
[408701530,1774149031978,-150.144,0.00023376,2]
[408701532,1774149031987,-34.65013393,0.00023376,2]
[408701535,1774149031999,-2100.37719293,0.00023376,2]
[408701537,1774149032010,-55.97267314,0.00023376,2]
[408701539,1774149032019,-192.661,0.00023376,2]
[408701541,1774149032028,-443.828,0.00023376,2]
[408701543,1774149032037,-186.443,0.00023376,2]
[408701545,1774149032046,-127.91316478,0.00023583,2]
[408701567,1774149037883,-1138.08360464,0.00016466,10]
[408701604,1774149040303,-3861.91639536,0.00016466,10]
[408701606,1774149040314,-1197.10362736,0.00016632,2]
[408701611,1774149040345,-1068.89637264,0.00016632,2]
[408701613,1774149040355,-118.97633681,0.00016632,2]
[408701615,1774149040367,-778.02366319,0.00016632,2]
[408701617,1774149040376,-4423.77743381,0.00023583,2]
[408701824,1774149042974,-2077.0,0.00023583,10]
[408701825,1774149042991,-449.0,0.00023583,10]
[408701826,1774149043001,-8998.66997032,0.00023583,2]
[408701827,1774149043014,-5233.88109999,0.00023583,2]
[408701841,1774149046225,-1998.0,0.00023583,10]
[408701842,1774149046235,-448.0,0.00023583,10]
[408701843,1774149046245,-42082.94545538,0.00023583,2]
[408701902,1774150231961,-337.48821058,0.00012527,10]
[408702000,1774150240615,-1200.0,0.00012527,10]
[408702007,1774150240671,-1219.42431196,0.00012527,10]
[408702009,1774150240685,-2243.08747746,0.00012527,10]
[408702011,1774150240694,-180.25216824,0.00013041,3]
[408702013,1774150240704,-601.7120483,0.00013699,2]
[408702016,1774150240725,-398.2879517,0.00013699,2]
[408702018,1774150240735,-502.80526384,0.00015069,2]
[408702020,1774150240744,-1161.0,0.00015861,2]
[408702022,1774150240754,-500.0,0.00015862,2]
[408702024,1774150240763,-160.0,0.00016542,2]
[408702026,1774150240772,-500.0,0.00016655,2]
[408702028,1774150240781,-449.0,0.00017241,2]
[408702030,1774150240791,-303.37746404,0.00017241,2]
[408702097,1774150246288,-1698.62253596,0.00017241,2]
[408702098,1774150246299,-336.0,0.00017241,2]
[408702099,1774150246309,-300.0,0.00019999,2]
[408702100,1774150246319,-10000.0,0.0002,120]
[408702101,1774150246330,-295.92,0.00021,4]
[408702102,1774150246341,-500.0,0.00022753,5]
[408702103,1774150246351,-20000.0,0.00023,30]
[408702104,1774150246360,-200.0,0.00023,7]
[408702105,1774150246369,-270.83333333,0.00023,2]
[408702106,1774150246377,-5572.5984836,0.0002306,2]
[408702107,1774150246387,-323.37275651,0.000233,45]
[408702108,1774150246396,-1060.50748672,0.000233,45]
[408702109,1774150246406,-894.16252351,0.000233,45]
[408702110,1774150246416,-2183.0934891,0.00023369,2]
[408702111,1774150246425,-535.495,0.00023374,2]
[408702112,1774150246437,-438.0,0.00023374,2]
[408702113,1774150246447,-183.0,0.00023374,2]
[408702114,1774150246456,-12008.03804441,0.00023383,2]
[408702115,1774150246465,-295.92,0.000235,6]
[408702116,1774150246475,-10000.0,0.000239,30]
[408702117,1774150246484,-8013.63193063,0.00023952,15]
[408702118,1774150246494,-656.0,0.00024,14]
[408702119,1774150246504,-1983.54237282,0.00024083,2]
[408702120,1774150246513,-10444.0,0.000241,3]
[408702121,1774150246523,-270.83333333,0.000241,3]
[408702122,1774150246532,-282.369334,0.00024149,2]
[408702123,1774150246541,-152.744505,0.00024168,2]
[408702124,1774150246551,-199.6917122,0.00024168,2]
[408702125,1774150246560,-151.3139663,0.00024168,2]
[408702126,1774150246570,-539.23935303,0.00024168,2]
[408702127,1774150246579,-162.50129736,0.00024168,2]
[408702128,1774150246589,-500.0,0.00024173,2]
[408702129,1774150246598,-500.0,0.00024173,2]
[408702130,1774150246608,-500.0,0.00024173,2]
[408702131,1774150246619,-500.0,0.00024173,2]
[408702132,1774150246628,-500.0,0.00024173,2]
[408702133,1774150246637,-4237.66481455,0.00024182,2]
[408702134,1774150246647,-25199.0827107,0.00024183,2]
[408702135,1774150246659,-6941.10724371,0.00024183,2]
[408702208,1774151432116,-425.97873272,0.00012304,10]
[408702215,1774151432173,-2598.50473445,0.00012304,10]
[408702338,1774151438350,-1975.51653283,0.00012304,10]
[408702340,1774151438361,-209.15140978,0.00012554,2]
[408702342,1774151438370,-1000.0,0.00013699,2]
[408702344,1774151438379,-500.0,0.00014,2]
[408702346,1774151438389,-250.24803461,0.00016806,2]
[408702348,1774151438397,-500.0,0.00017,2]
[408702350,1774151438407,-252.0,0.00017268,2]
[408702351,1774151438416,-1939.0,0.00017268,2]
[408702352,1774151438425,-500.0,0.00018,2]
[408702353,1774151438435,-1200.0,0.00019498,2]
[408702354,1774151438444,-500.0,0.000195,2]
[408702355,1774151438453,-300.0,0.00019938,2]
[408702356,1774151438462,-300.0,0.00019938,2]
[408702357,1774151438471,-300.0,0.00019938,2]
[408702359,1774151438480,-1000.0,0.0002,2]
[408702361,1774151438489,-500.0,0.00020999,2]
[408702363,1774151438499,-1000.0,0.00021,2]
[408702365,1774151438508,-160.0,0.00021046,2]
[408702366,1774151438518,-300.0,0.00021208,2]
[408702367,1774151438530,-1000.0,0.00022,2]
[408702368,1774151438539,-1000.0,0.00022429,30]
[408702369,1774151438548,-607.15014204,0.0002271,5]
[408702370,1774151438557,-1336.53613996,0.0002271,5]
[408702371,1774151438567,-911.85482989,0.00022712,30]
[408702372,1774151438576,-911.85482989,0.00022822,30]
[408702373,1774151438586,-500.0,0.00022831,5]
[408702374,1774151438596,-5736.8432562,0.00022879,2]
[408702375,1774151438608,-1243.6029921,0.00022879,2]
[408702376,1774151438618,-1520.8581336,0.00022879,2]
[408702377,1774151438627,-911.85482989,0.00022932,30]
[408702378,1774151438637,-2150.738,0.00022973,2]
[408702379,1774151438646,-500.0,0.00022999,2]
[408702380,1774151438656,-1000.0,0.00023,2]
[408702381,1774151438665,-911.85482989,0.00023041,30]
[408702382,1774151438674,-152.5758605,0.000231,44]
[408702383,1774151438683,-156.90093475,0.000231,44]
[408702384,1774151438692,-200000.29111766,0.000231,10]
[408702385,1774151438701,-911.85482989,0.00023151,30]
[408702386,1774151438710,-151.0,0.00023167,2]
[408702387,1774151438719,-537.6845,0.00023167,2]
[408702388,1774151438729,-162.380719,0.00023167,2]
[408702389,1774151438739,-500.0,0.00023173,2]
[408702390,1774151438748,-500.0,0.00023178,2]
[408702391,1774151438757,-183.90975807,0.00023178,2]
[408702392,1774151438768,-500.0,0.00023178,2]
[408702393,1774151438777,-500.0,0.00023178,2]
[408702394,1774151438786,-500.0,0.00023178,2]
[408702395,1774151438795,-500.0,0.00023178,2]
[408702396,1774151438804,-500.0,0.00023178,2]
[408702397,1774151438814,-500.0,0.00023178,2]
[408702398,1774151438823,-500.0,0.00023178,2]
[408702399,1774151438833,-500.0,0.00023178,2]
[408702400,1774151438843,-500.0,0.00023178,2]
[408702401,1774151438853,-500.0,0.00023178,2]
[408702402,1774151438863,-500.0,0.00023178,2]
[408702403,1774151438872,-500.0,0.00023178,2]
[408702404,1774151438881,-375.78235598,0.00023178,2]
[408702405,1774151438891,-500.0,0.00023178,2]
[408702406,1774151438900,-500.0,0.00023178,2]
[408702407,1774151438909,-500.0,0.00023178,2]
[408702408,1774151438919,-500.0,0.00023178,2]
[408702409,1774151438928,-500.0,0.00023178,2]
[408702410,1774151438938,-500.0,0.00023178,2]
[408702411,1774151438947,-500.0,0.00023178,2]
[408702412,1774151438956,-500.0,0.00023178,2]
[408702413,1774151438965,-500.0,0.00023178,2]
[408702414,1774151438974,-500.0,0.00023178,2]
[408702415,1774151438983,-500.0,0.00023178,2]
[408702416,1774151438994,-500.0,0.00023178,2]
[408702417,1774151439003,-500.0,0.00023178,2]
[408702418,1774151439012,-500.0,0.00023178,2]
[408702419,1774151439022,-500.0,0.00023178,2]
[408702420,1774151439032,-500.0,0.00023178,2]
[408702421,1774151439041,-500.0,0.00023178,2]
[408702422,1774151439051,-500.0,0.00023178,2]
[408702423,1774151439061,-500.0,0.00023178,2]
[408702424,1774151439071,-195.04730283,0.00023178,2]
[408702425,1774151439080,-500.0,0.00023178,2]
[408702426,1774151439090,-478.66858017,0.00023178,2]
[408702427,1774151439100,-500.0,0.00023178,2]
[408702428,1774151439110,-500.0,0.00023178,2]
[408702429,1774151439120,-500.0,0.00023178,2]
[408702430,1774151439130,-500.0,0.00023178,2]
[408702431,1774151439139,-500.0,0.00023178,2]
[408702432,1774151439149,-500.0,0.00023178,2]
[408702433,1774151439159,-500.0,0.00023178,2]
[408702434,1774151439168,-500.0,0.00023178,2]
[408702435,1774151439178,-500.0,0.00023178,2]
[408702436,1774151439187,-500.0,0.00023178,2]
[408702437,1774151439197,-500.0,0.00023178,2]
[408702438,1774151439206,-500.0,0.00023178,2]
[408702439,1774151439216,-500.0,0.00023178,2]
[408702440,1774151439225,-500.0,0.00023178,2]
[408702441,1774151439235,-500.0,0.00023178,2]
[408702442,1774151439244,-500.0,0.00023178,2]
[408702443,1774151439253,-500.0,0.00023178,2]
[408702444,1774151439263,-500.0,0.00023178,2]
[408702445,1774151439272,-500.0,0.00023178,2]
[408702446,1774151439282,-500.0,0.00023178,2]
[408702447,1774151439291,-500.0,0.00023178,2]
[408702448,1774151439300,-500.0,0.00023178,2]
[408702449,1774151439311,-500.0,0.00023178,2]
[408702450,1774151439322,-500.0,0.00023178,2]
[408702451,1774151439331,-500.0,0.00023178,2]
[408702452,1774151439340,-500.0,0.00023178,2]
[408702453,1774151439350,-500.0,0.00023178,2]
[408702454,1774151439359,-500.0,0.00023178,2]
[408702455,1774151439369,-500.0,0.00023178,2]
[408702456,1774151439379,-500.0,0.00023178,2]
[408702457,1774151439388,-500.0,0.00023178,2]
[408702458,1774151439397,-500.0,0.00023178,2]
[408702459,1774151439406,-500.0,0.00023178,2]
[408702460,1774151439415,-500.0,0.00023178,2]
[408702461,1774151439424,-500.0,0.00023178,2]
[408702462,1774151439433,-500.0,0.00023178,2]
[408702463,1774151439442,-500.0,0.00023178,2]
[408702464,1774151439452,-500.0,0.00023178,2]
[408702465,1774151439461,-500.0,0.00023178,2]
[408702466,1774151439471,-500.0,0.00023178,2]
[408702467,1774151439480,-500.0,0.00023178,2]
[408702468,1774151439490,-500.0,0.00023178,2]
[408702469,1774151439499,-500.0,0.00023178,2]
[408702470,1774151439508,-500.0,0.00023178,2]
[408702471,1774151439518,-500.0,0.00023178,2]
[408702472,1774151439532,-500.0,0.00023178,2]
[408702473,1774151439541,-500.0,0.00023178,2]
[408702474,1774151439550,-382.6865342,0.00023178,2]
[408702475,1774151439559,-500.0,0.00023178,2]
[408702476,1774151439570,-500.0,0.00023178,2]
[408702477,1774151439579,-500.0,0.00023178,2]
[408702478,1774151439589,-500.0,0.00023178,2]
[408702479,1774151439601,-500.0,0.00023178,2]
[408702480,1774151439611,-500.0,0.00023178,2]
[408702481,1774151439620,-500.0,0.00023178,2]
[408702482,1774151439630,-500.0,0.00023178,2]
[408702483,1774151439639,-500.0,0.00023178,2]